[Event "*** Titled Tuesday Blitz"]
[Site "Chess.com"]
[Date "2021.03.30"]
[Round "8"]
[White "nikitakhoroshev"]
[Black "crazyluzhinTh3"]
[Result "1-0"]
[WhiteElo "2674"]
[BlackElo "2525"]
[TimeControl "180+1"]
[EndTime "11:28:15 PDT"]
[Termination "nikitakhoroshev won by resignation"]

1. d4 {[%clk 0:03:00.9]} 1... d6 {[%clk 0:02:54.7]} 2. c4 {[%clk 0:02:59.3]}
2... e5 {[%clk 0:02:54.5]} 3. Nf3 {[%clk 0:02:59.3]} 3... e4 {[%clk 0:02:54.7]}
4. Ng5 {[%clk 0:02:58.2]} 4... f5 {[%clk 0:02:55.1]} 5. Nh3 {[%clk 0:02:54.7]}
5... c6 {[%clk 0:02:53.1]} 6. Nc3 {[%clk 0:02:54.4]} 6... Na6 {[%clk 0:02:53.5]}
7. f3 {[%clk 0:02:53.6]} 7... d5 {[%clk 0:02:52.3]} 8. Bg5 {[%clk 0:02:49.2]}
8... Be7 {[%clk 0:02:45.8]} 9. Bxe7 {[%clk 0:02:48.7]} 9... Nxe7 {[%clk
0:02:46.7]} 10. e3 {[%clk 0:02:45.9]} 10... Nc7 {[%clk 0:02:46.4]} 11. f4 {[%clk
0:02:45.9]} 11... O-O {[%clk 0:02:45.2]} 12. Be2 {[%clk 0:02:43.9]} 12... Kh8
{[%clk 0:02:43.9]} 13. O-O {[%clk 0:02:43.4]} 13... Be6 {[%clk 0:02:40.1]} 14.
b3 {[%clk 0:02:42.5]} 14... h6 {[%clk 0:02:38.2]} 15. Rc1 {[%clk 0:02:40.1]}
15... b6 {[%clk 0:02:15.6]} 16. Qe1 {[%clk 0:02:37.6]} 16... Qd7 {[%clk
0:01:55.8]} 17. Qh4 {[%clk 0:02:31.1]} 17... Ng6 {[%clk 0:01:48.9]} 18. Qg3
{[%clk 0:02:30.5]} 18... Rf6 {[%clk 0:01:46.3]} 19. Rc2 {[%clk 0:02:24.4]} 19...
Raf8 {[%clk 0:01:44.4]} 20. Rfc1 {[%clk 0:02:24.2]} 20... Ne7 {[%clk 0:01:42.6]}
21. cxd5 {[%clk 0:02:23.9]} 21... Bxd5 {[%clk 0:01:30.7]} 22. Nxd5 {[%clk
0:02:17.8]} 22... Ncxd5 {[%clk 0:01:31.6]} 23. a3 {[%clk 0:02:12.3]} 23... Rg6
{[%clk 0:01:30.5]} 24. Qf2 {[%clk 0:02:12.3]} 24... Rd6 {[%clk 0:01:26.9]} 25.
Kh1 {[%clk 0:02:07.6]} 25... Rd8 {[%clk 0:01:24.4]} 26. Rg1 {[%clk 0:02:06.6]}
26... Nf6 {[%clk 0:01:23.8]} 27. b4 {[%clk 0:02:05.2]} 27... Ng4 {[%clk
0:01:15.7]} 28. Qg3 {[%clk 0:02:03.5]} 28... Rg6 {[%clk 0:01:02.1]} 29. Nf2
{[%clk 0:02:03]} 29... Nxf2+ {[%clk 0:00:29.9]} 30. Qxf2 {[%clk 0:02:03.9]}
30... Rd6 {[%clk 0:00:27.8]} 31. g4 {[%clk 0:02:02.6]} 31... a5 {[%clk
0:00:23.6]} 32. g5 {[%clk 0:01:59.8]} 32... axb4 {[%clk 0:00:20.9]} 33. axb4
{[%clk 0:02:00.7]} 33... Nd5 {[%clk 0:00:21.2]} 34. Rb2 {[%clk 0:01:58]} 34...
Qe7 {[%clk 0:00:21.3]} 35. Rg3 {[%clk 0:01:52.3]} 35... hxg5 {[%clk 0:00:19.4]}
36. Rxg5 {[%clk 0:01:51.4]} 36... Rh6 {[%clk 0:00:18.5]} 37. Bc4 {[%clk
0:01:45.9]} 37... Nxb4 {[%clk 0:00:16.9]} 38. Qg3 {[%clk 0:01:36.8]} 38... c5
{[%clk 0:00:16.4]} 39. Rg2 {[%clk 0:01:29.9]} 39... Rd7 {[%clk 0:00:14]} 40.
Rxf5 {[%clk 0:01:26.7]} 40... cxd4 {[%clk 0:00:14.1]} 41. Rf7 {[%clk 0:01:26.7]}
41... Qxf7 {[%clk 0:00:11.7]} 42. Bxf7 {[%clk 0:01:27.6]} 42... Rxf7 {[%clk
0:00:12.1]} 43. exd4 {[%clk 0:01:24.4]} 43... Nd5 {[%clk 0:00:12.1]} 44. Qb3
{[%clk 0:01:19.7]} 44... Rf5 {[%clk 0:00:10.1]} 45. Rg5 {[%clk 0:01:17]} 45...
Rhf6 {[%clk 0:00:09.7]} 46. Rxf5 {[%clk 0:01:15.7]} 46... Rxf5 {[%clk
0:00:10.1]} 47. Qh3+ {[%clk 0:01:16.2]} 1-0

[Event "*** Titled Tuesday Blitz"]
[Site "Chess.com"]
[Date "2021.03.30"]
[Round "8"]
[White "Trickster_Pony"]
[Black "BlackWidow515"]
[Result "0-1"]
[WhiteElo "1519"]
[BlackElo "2182"]
[TimeControl "180+1"]
[EndTime "11:28:16 PDT"]
[Termination "BlackWidow515 won on time"]

1. c4 {[%clk 0:02:58.5]} 1... e6 {[%clk 0:02:59.9]} 2. g3 {[%clk 0:02:57.2]}
2... d5 {[%clk 0:03:00.3]} 3. Bg2 {[%clk 0:02:56.3]} 3... Nf6 {[%clk 0:03:00.9]}
4. Nf3 {[%clk 0:02:54.7]} 4... Be7 {[%clk 0:03:01.4]} 5. O-O {[%clk 0:02:54]}
5... O-O {[%clk 0:03:02]} 6. cxd5 {[%clk 0:02:52.7]} 6... exd5 {[%clk 0:03:02]}
7. d4 {[%clk 0:02:53.2]} 7... b6 {[%clk 0:03:02.6]} 8. Nc3 {[%clk 0:02:53.1]}
8... Bb7 {[%clk 0:03:03.2]} 9. Bf4 {[%clk 0:02:49.9]} 9... Nbd7 {[%clk
0:03:03.4]} 10. Ne5 {[%clk 0:02:35.5]} 10... c5 {[%clk 0:03:01.7]} 11. dxc5
{[%clk 0:02:17.6]} 11... Nxc5 {[%clk 0:02:48.7]} 12. Qc2 {[%clk 0:02:00.7]}
12... Rc8 {[%clk 0:02:31.6]} 13. Rfd1 {[%clk 0:01:58.5]} 13... Nce4 {[%clk
0:02:24.2]} 14. Qd3 {[%clk 0:01:45]} 14... Nxc3 {[%clk 0:02:22.8]} 15. bxc3
{[%clk 0:01:45.9]} 15... Bd6 {[%clk 0:02:14.7]} 16. Qd4 {[%clk 0:01:35.6]} 16...
Re8 {[%clk 0:02:09.4]} 17. c4 {[%clk 0:01:28.5]} 17... Bxe5 {[%clk 0:02:02.9]}
18. Bxe5 {[%clk 0:01:29.4]} 18... Rxc4 {[%clk 0:02:03]} 19. Bxf6 {[%clk
0:01:21.8]} 19... Rxd4 {[%clk 0:01:56.9]} 20. Bxd8 {[%clk 0:01:19.6]} 20...
Rxd1+ {[%clk 0:01:56.8]} 21. Rxd1 {[%clk 0:01:18.5]} 21... Rxd8 {[%clk
0:01:57.4]} 22. Kf1 {[%clk 0:01:12.7]} 22... Kf8 {[%clk 0:01:56.1]} 23. e3
{[%clk 0:01:12.9]} 23... Ke7 {[%clk 0:01:56.3]} 24. Ke2 {[%clk 0:01:13.1]} 24...
Ke6 {[%clk 0:01:56.7]} 25. Kd3 {[%clk 0:01:13]} 25... Rc8 {[%clk 0:01:54.5]} 26.
Rb1 {[%clk 0:01:02.8]} 26... Kd6 {[%clk 0:01:52.2]} 27. Rb4 {[%clk 0:00:59.3]}
27... f5 {[%clk 0:01:41.4]} 28. Bh3 {[%clk 0:00:55.9]} 28... g6 {[%clk 0:01:41]}
29. Rd4 {[%clk 0:00:55]} 29... Rc1 {[%clk 0:01:37.6]} 30. g4 {[%clk 0:00:40.4]}
30... fxg4 {[%clk 0:01:30.3]} 31. Bxg4 {[%clk 0:00:39.5]} 31... Rg1 {[%clk
0:01:30.4]} 32. Bf3 {[%clk 0:00:38.3]} 32... Ke5 {[%clk 0:01:21.2]} 33. Ra4
{[%clk 0:00:20.4]} 33... a5 {[%clk 0:01:18.6]} 34. Rh4 {[%clk 0:00:16.9]} 34...
h5 {[%clk 0:01:17.9]} 35. Rd4 {[%clk 0:00:14.9]} 35... Ra1 {[%clk 0:01:15]} 36.
a4 {[%clk 0:00:14]} 36... Ra2 {[%clk 0:01:12.5]} 37. Kc3 {[%clk 0:00:13.1]}
37... Rxf2 {[%clk 0:01:11.9]} 38. Bh1 {[%clk 0:00:09.7]} 38... Rxh2 {[%clk
0:01:11.6]} 39. Rd1 {[%clk 0:00:03.8]} 39... Rh3 {[%clk 0:01:09.4]} 0-1

[Event "*** Titled Tuesday Blitz"]
[Site "Chess.com"]
[Date "2021.03.30"]
[Round "8"]
[White "lucachess49"]
[Black "QuintilianoR"]
[Result "0-1"]
[WhiteElo "2435"]
[BlackElo "2709"]
[TimeControl "180+1"]
[EndTime "11:28:17 PDT"]
[Termination "QuintilianoR won by checkmate"]

1. d4 {[%clk 0:03:00.9]} 1... Nf6 {[%clk 0:02:59.8]} 2. c4 {[%clk 0:02:59.1]}
2... e6 {[%clk 0:03:00.2]} 3. Nc3 {[%clk 0:02:57]} 3... Bb4 {[%clk 0:02:59.4]}
4. e3 {[%clk 0:02:53.8]} 4... O-O {[%clk 0:02:58.7]} 5. Ne2 {[%clk 0:02:51.1]}
5... d5 {[%clk 0:02:57.4]} 6. a3 {[%clk 0:02:50.4]} 6... Be7 {[%clk 0:02:58]} 7.
cxd5 {[%clk 0:02:47.1]} 7... exd5 {[%clk 0:02:58.9]} 8. Nf4 {[%clk 0:02:47.5]}
8... c6 {[%clk 0:02:52.2]} 9. Bd3 {[%clk 0:02:47.2]} 9... Re8 {[%clk 0:02:46]}
10. O-O {[%clk 0:02:46.1]} 10... Nbd7 {[%clk 0:02:46.5]} 11. f3 {[%clk
0:02:43.5]} 11... Nf8 {[%clk 0:02:45.9]} 12. Bc2 {[%clk 0:02:35.6]} 12... Bd6
{[%clk 0:02:45]} 13. e4 {[%clk 0:02:32.8]} 13... dxe4 {[%clk 0:02:44.6]} 14.
fxe4 {[%clk 0:02:33.7]} 14... Bg4 {[%clk 0:02:44.4]} 15. Qd3 {[%clk 0:02:25.7]}
15... c5 {[%clk 0:02:43.5]} 16. e5 {[%clk 0:01:45.7]} 16... cxd4 {[%clk
0:02:42.2]} 17. exd6 {[%clk 0:01:38.8]} 17... dxc3 {[%clk 0:02:39]} 18. bxc3
{[%clk 0:01:39.7]} 18... Ng6 {[%clk 0:02:21.1]} 19. h3 {[%clk 0:01:21.1]} 19...
Qb6+ {[%clk 0:01:32.7]} 20. Kh2 {[%clk 0:01:17.4]} 20... Bd7 {[%clk 0:01:31]}
21. Nxg6 {[%clk 0:01:02.1]} 21... hxg6 {[%clk 0:01:31.9]} 22. Bg5 {[%clk
0:00:35.1]} 22... Re6 {[%clk 0:00:56.9]} 23. Rad1 {[%clk 0:00:29.4]} 23... Rae8
{[%clk 0:00:47.3]} 24. a4 {[%clk 0:00:10.8]} 24... Bc6 {[%clk 0:00:40.2]} 25. a5
{[%clk 0:00:09.5]} 25... Qc5 {[%clk 0:00:25.5]} 26. Bxf6 {[%clk 0:00:09.2]}
26... gxf6 {[%clk 0:00:24.4]} 27. Bb3 {[%clk 0:00:09.7]} 27... Qg5 {[%clk
0:00:22.7]} 28. Bxe6 {[%clk 0:00:08.5]} 28... Qxg2# {[%clk 0:00:22.2]} 0-1

[Event "*** Titled Tuesday Blitz"]
[Site "Chess.com"]
[Date "2021.03.30"]
[Round "8"]
[White "Beca95"]
[Black "jacky72"]
[Result "1-0"]
[WhiteElo "2898"]
[BlackElo "2713"]
[TimeControl "180+1"]
[EndTime "11:28:20 PDT"]
[Termination "Beca95 won by checkmate"]

1. d4 {[%clk 0:03:00.9]} 1... Nf6 {[%clk 0:02:58]} 2. c4 {[%clk 0:03:01.5]} 2...
c6 {[%clk 0:02:58.3]} 3. Nc3 {[%clk 0:03:01.4]} 3... d5 {[%clk 0:02:58.8]} 4.
Nf3 {[%clk 0:03:02]} 4... a6 {[%clk 0:02:59]} 5. e3 {[%clk 0:03:01.4]} 5... b5
{[%clk 0:02:56.5]} 6. b3 {[%clk 0:03:01.6]} 6... Bg4 {[%clk 0:02:57]} 7. h3
{[%clk 0:03:01.4]} 7... Bh5 {[%clk 0:02:56.2]} 8. g4 {[%clk 0:02:59]} 8... Bg6
{[%clk 0:02:56]} 9. Ne5 {[%clk 0:02:59.2]} 9... e6 {[%clk 0:02:55.1]} 10. c5
{[%clk 0:02:45.7]} 10... Nfd7 {[%clk 0:02:44.9]} 11. Nxg6 {[%clk 0:02:44.6]}
11... hxg6 {[%clk 0:02:45.8]} 12. Bg2 {[%clk 0:02:42.1]} 12... e5 {[%clk
0:02:37.3]} 13. O-O {[%clk 0:02:35.1]} 13... Be7 {[%clk 0:02:26.7]} 14. b4
{[%clk 0:02:26.1]} 14... O-O {[%clk 0:02:25.8]} 15. a4 {[%clk 0:02:25.7]} 15...
bxa4 {[%clk 0:02:21.4]} 16. Rxa4 {[%clk 0:02:24.7]} 16... Bf6 {[%clk 0:02:02.7]}
17. Ra3 {[%clk 0:01:59.7]} 17... Re8 {[%clk 0:01:58.9]} 18. b5 {[%clk
0:01:57.5]} 18... exd4 {[%clk 0:01:56.4]} 19. exd4 {[%clk 0:01:57.8]} 19... Nf8
{[%clk 0:01:42.7]} 20. bxc6 {[%clk 0:01:23.4]} 20... Nxc6 {[%clk 0:01:38.6]} 21.
Bxd5 {[%clk 0:01:23.4]} 21... Nxd4 {[%clk 0:01:38.3]} 22. g5 {[%clk 0:01:19.8]}
22... Be5 {[%clk 0:01:26.3]} 23. f4 {[%clk 0:01:17.5]} 23... Nfe6 {[%clk
0:00:57]} 24. fxe5 {[%clk 0:01:16.2]} 24... Rc8 {[%clk 0:00:57.5]} 25. Rxa6
{[%clk 0:01:08.4]} 25... Rxc5 {[%clk 0:00:49.3]} 26. Rd6 {[%clk 0:01:04.2]}
26... Qa5 {[%clk 0:00:43.9]} 27. Bxe6 {[%clk 0:00:47.5]} 27... Nxe6 {[%clk
0:00:37.7]} 28. Nd5 {[%clk 0:00:43.6]} 28... Rc4 {[%clk 0:00:26.5]} 29. Qf3
{[%clk 0:00:40.1]} 29... Rf8 {[%clk 0:00:17.9]} 30. Be3 {[%clk 0:00:39.9]} 30...
Nd4 {[%clk 0:00:10.5]} 31. Qg4 {[%clk 0:00:40]} 31... Qa4 {[%clk 0:00:04.7]} 32.
Ne7+ {[%clk 0:00:39]} 32... Kh7 {[%clk 0:00:04.3]} 33. Qh4# {[%clk 0:00:39.1]}
1-0

[Event "*** Titled Tuesday Blitz"]
[Site "Chess.com"]
[Date "2021.03.30"]
[Round "8"]
[White "Taktikmonster"]
[Black "I_Enchev"]
[Result "1-0"]
[WhiteElo "2393"]
[BlackElo "2536"]
[TimeControl "180+1"]
[EndTime "11:28:20 PDT"]
[Termination "Taktikmonster won by resignation"]

1. e4 {[%clk 0:03:00.9]} 1... c6 {[%clk 0:02:59.5]} 2. d4 {[%clk 0:02:58.9]}
2... d5 {[%clk 0:02:59.8]} 3. e5 {[%clk 0:02:58.1]} 3... Bf5 {[%clk 0:02:58.7]}
4. Nd2 {[%clk 0:02:57]} 4... e6 {[%clk 0:02:56.9]} 5. Nb3 {[%clk 0:02:57.2]}
5... c5 {[%clk 0:02:52.4]} 6. dxc5 {[%clk 0:02:52.8]} 6... Bxc5 {[%clk
0:02:50.8]} 7. Nxc5 {[%clk 0:02:53.7]} 7... Qa5+ {[%clk 0:02:50.4]} 8. c3 {[%clk
0:02:48.6]} 8... Qxc5 {[%clk 0:02:50.6]} 9. Be3 {[%clk 0:02:38.9]} 9... Qc7
{[%clk 0:02:48.9]} 10. f4 {[%clk 0:02:38.8]} 10... Nc6 {[%clk 0:02:44.8]} 11.
Nf3 {[%clk 0:02:38.5]} 11... Nge7 {[%clk 0:02:44.7]} 12. Be2 {[%clk 0:02:36.9]}
12... O-O {[%clk 0:02:42.5]} 13. O-O {[%clk 0:02:37]} 13... Bg4 {[%clk
0:02:42.1]} 14. Qd2 {[%clk 0:02:35]} 14... Nf5 {[%clk 0:02:40.8]} 15. h3 {[%clk
0:02:33.9]} 15... Bxf3 {[%clk 0:02:34.2]} 16. Rxf3 {[%clk 0:02:21.9]} 16... Rfd8
{[%clk 0:02:31.9]} 17. Rd1 {[%clk 0:02:16.4]} 17... Nxe3 {[%clk 0:02:19.7]} 18.
Qxe3 {[%clk 0:02:17.3]} 18... Qb6 {[%clk 0:02:14.3]} 19. Qxb6 {[%clk 0:02:10.7]}
19... axb6 {[%clk 0:02:15.2]} 20. a3 {[%clk 0:02:10.3]} 20... g6 {[%clk
0:02:07.6]} 21. Kf2 {[%clk 0:02:10.1]} 21... h5 {[%clk 0:02:05]} 22. g4 {[%clk
0:02:08.1]} 22... hxg4 {[%clk 0:02:03.5]} 23. hxg4 {[%clk 0:02:09]} 23... Kg7
{[%clk 0:02:03.9]} 24. Rh3 {[%clk 0:02:06]} 24... Rh8 {[%clk 0:02:02.4]} 25.
Rdh1 {[%clk 0:02:05.8]} 25... Rxh3 {[%clk 0:02:01.7]} 26. Rxh3 {[%clk
0:02:06.7]} 26... g5 {[%clk 0:01:54.3]} 27. Bd3 {[%clk 0:02:01.4]} 27... gxf4
{[%clk 0:01:52.3]} 28. Rh7+ {[%clk 0:02:01.2]} 28... Kg8 {[%clk 0:01:52.3]} 29.
Rh5 {[%clk 0:01:57.3]} 29... d4 {[%clk 0:01:38.9]} 30. c4 {[%clk 0:01:06.1]}
30... Ra5 {[%clk 0:01:37.1]} 31. Be4 {[%clk 0:01:00.7]} 31... Rxe5 {[%clk
0:01:29.5]} 32. Bxc6 {[%clk 0:00:38.9]} 32... Rxh5 {[%clk 0:01:25.7]} 33. gxh5
{[%clk 0:00:39.8]} 33... bxc6 {[%clk 0:01:25.5]} 34. c5 {[%clk 0:00:29.2]} 34...
b5 {[%clk 0:01:20.9]} 35. b3 {[%clk 0:00:27.6]} 35... e5 {[%clk 0:01:19.2]} 36.
a4 {[%clk 0:00:27.2]} 36... bxa4 {[%clk 0:01:18.7]} 37. bxa4 {[%clk 0:00:28.1]}
37... e4 {[%clk 0:01:18.7]} 38. a5 {[%clk 0:00:28]} 38... d3 {[%clk 0:00:59.8]}
39. a6 {[%clk 0:00:27.5]} 39... d2 {[%clk 0:00:58.7]} 40. Ke2 {[%clk 0:00:17.3]}
40... e3 {[%clk 0:00:57.7]} 41. a7 {[%clk 0:00:17.4]} 41... f3+ {[%clk
0:00:58.2]} 42. Kd1 {[%clk 0:00:17.6]} 42... f2 {[%clk 0:00:56.5]} 43. a8=Q+
{[%clk 0:00:18]} 43... Kh7 {[%clk 0:00:56.5]} 44. Qa6 {[%clk 0:00:14]} 1-0

[Event "*** Titled Tuesday Blitz"]
[Site "Chess.com"]
[Date "2021.03.30"]
[Round "8"]
[White "MatyChess1"]
[Black "dachessmandan"]
[Result "1-0"]
[WhiteElo "2623"]
[BlackElo "2489"]
[TimeControl "180+1"]
[EndTime "11:28:21 PDT"]
[Termination "MatyChess1 won by checkmate"]

1. e4 {[%clk 0:03:00.9]} 1... e5 {[%clk 0:02:58.6]} 2. Nf3 {[%clk 0:03:01.4]}
2... Nc6 {[%clk 0:02:58.1]} 3. Bc4 {[%clk 0:03:01.9]} 3... Bc5 {[%clk
0:02:56.4]} 4. c3 {[%clk 0:03:02]} 4... Nf6 {[%clk 0:02:56.2]} 5. d3 {[%clk
0:03:02.5]} 5... O-O {[%clk 0:02:55.5]} 6. Nbd2 {[%clk 0:03:01]} 6... a6 {[%clk
0:02:53.5]} 7. a4 {[%clk 0:03:00.2]} 7... d6 {[%clk 0:02:47.8]} 8. O-O {[%clk
0:02:56.3]} 8... Ba7 {[%clk 0:02:45.6]} 9. Re1 {[%clk 0:02:54.3]} 9... Ng4
{[%clk 0:02:39.3]} 10. Re2 {[%clk 0:02:52.7]} 10... Ne7 {[%clk 0:02:35.3]} 11.
h3 {[%clk 0:02:45.1]} 11... Nf6 {[%clk 0:02:30.2]} 12. Nf1 {[%clk 0:02:44.8]}
12... Ng6 {[%clk 0:02:30.5]} 13. Ng3 {[%clk 0:02:45.3]} 13... b5 {[%clk
0:02:13.7]} 14. Bb3 {[%clk 0:02:37.3]} 14... Be6 {[%clk 0:02:06.5]} 15. Bc2
{[%clk 0:02:28.2]} 15... h6 {[%clk 0:01:59.1]} 16. d4 {[%clk 0:02:28.3]} 16...
Re8 {[%clk 0:01:39]} 17. Be3 {[%clk 0:02:22.6]} 17... Qc8 {[%clk 0:01:26.5]} 18.
axb5 {[%clk 0:02:08.8]} 18... exd4 {[%clk 0:01:10.5]} 19. cxd4 {[%clk
0:01:56.9]} 19... axb5 {[%clk 0:01:10.5]} 20. Rxa7 {[%clk 0:01:55]} 20... Rxa7
{[%clk 0:01:03.4]} 21. d5 {[%clk 0:01:55.4]} 21... Ra8 {[%clk 0:00:52]} 22. dxe6
{[%clk 0:01:54.9]} 22... Qxe6 {[%clk 0:00:50]} 23. Nd4 {[%clk 0:01:53.5]} 23...
Qd7 {[%clk 0:00:37.2]} 24. Ndf5 {[%clk 0:01:53.1]} 24... Ne5 {[%clk 0:00:34.3]}
25. Bb3 {[%clk 0:01:37.2]} 25... Nc4 {[%clk 0:00:32.8]} 26. Bd4 {[%clk
0:01:36.1]} 26... Qd8 {[%clk 0:00:22.4]} 27. Qc1 {[%clk 0:01:25.3]} 27... c5
{[%clk 0:00:21.1]} 28. Bc3 {[%clk 0:01:20.3]} 28... Ne5 {[%clk 0:00:19.4]} 29.
Nxg7 {[%clk 0:01:08.3]} 29... Kxg7 {[%clk 0:00:19]} 30. Nf5+ {[%clk 0:01:08.1]}
30... Kg8 {[%clk 0:00:14.9]} 31. Qxh6 {[%clk 0:01:09]} 31... Nh5 {[%clk
0:00:07.4]} 32. Qxh5 {[%clk 0:01:04.5]} 32... Qf6 {[%clk 0:00:07.5]} 33. Re3
{[%clk 0:01:02.2]} 33... Ra1+ {[%clk 0:00:04.5]} 34. Kh2 {[%clk 0:01:00.2]}
34... Kf8 {[%clk 0:00:04]} 35. Rg3 {[%clk 0:00:52.1]} 35... Rea8 {[%clk
0:00:04]} 36. Nxd6 {[%clk 0:00:45.7]} 36... Qxd6 {[%clk 0:00:02.8]} 37. Bxe5
{[%clk 0:00:44.7]} 37... Qc6 {[%clk 0:00:02.3]} 38. Qxf7# {[%clk 0:00:41.7]} 1-0

[Event "*** Titled Tuesday Blitz"]
[Site "Chess.com"]
[Date "2021.03.30"]
[Round "8"]
[White "Balla_Tamas"]
[Black "alexrustemov"]
[Result "0-1"]
[WhiteElo "2539"]
[BlackElo "2733"]
[TimeControl "180+1"]
[EndTime "11:28:22 PDT"]
[Termination "alexrustemov won by resignation"]

1. e4 {[%clk 0:03:00.1]} 1... e6 {[%clk 0:02:59.8]} 2. d4 {[%clk 0:02:59.1]}
2... d5 {[%clk 0:03:00.4]} 3. Nd2 {[%clk 0:02:59.1]} 3... c5 {[%clk 0:03:00.3]}
4. exd5 {[%clk 0:02:58.3]} 4... Qxd5 {[%clk 0:03:01.2]} 5. Ngf3 {[%clk
0:02:57.1]} 5... cxd4 {[%clk 0:03:01.7]} 6. Bc4 {[%clk 0:02:53.8]} 6... Qd7
{[%clk 0:03:02.1]} 7. O-O {[%clk 0:02:53.1]} 7... Nc6 {[%clk 0:03:02.1]} 8. Nb3
{[%clk 0:02:53.2]} 8... Nf6 {[%clk 0:03:01.8]} 9. Nbxd4 {[%clk 0:02:52.6]} 9...
Nxd4 {[%clk 0:03:02.7]} 10. Nxd4 {[%clk 0:02:52]} 10... a6 {[%clk 0:03:02.6]}
11. c3 {[%clk 0:02:39.7]} 11... Bc5 {[%clk 0:03:01.4]} 12. Be3 {[%clk
0:02:12.1]} 12... Qc7 {[%clk 0:02:54.4]} 13. Be2 {[%clk 0:02:01.1]} 13... O-O
{[%clk 0:02:53]} 14. Bg5 {[%clk 0:01:41.6]} 14... Ne4 {[%clk 0:02:45.1]} 15. Be3
{[%clk 0:01:38]} 15... Nf6 {[%clk 0:02:16.3]} 16. Bg5 {[%clk 0:01:36.3]} 16...
Qe5 {[%clk 0:02:09]} 17. Nf3 {[%clk 0:01:33.9]} 17... Qd5 {[%clk 0:01:56.8]} 18.
Bxf6 {[%clk 0:01:24.7]} 18... Qxd1 {[%clk 0:01:55.8]} 19. Rfxd1 {[%clk
0:01:23.5]} 19... gxf6 {[%clk 0:01:56]} 20. b4 {[%clk 0:01:11]} 20... Be7 {[%clk
0:01:53.9]} 21. Nd4 {[%clk 0:00:52.6]} 21... f5 {[%clk 0:01:49.9]} 22. f4 {[%clk
0:00:45.9]} 22... Rd8 {[%clk 0:01:46.8]} 23. Bf3 {[%clk 0:00:45]} 23... Rb8
{[%clk 0:01:40.3]} 24. a4 {[%clk 0:00:42.3]} 24... Bf6 {[%clk 0:01:34.1]} 25.
Ne2 {[%clk 0:00:37.3]} 25... Bd7 {[%clk 0:01:29.4]} 26. Kf2 {[%clk 0:00:34.2]}
26... Kf8 {[%clk 0:01:28.6]} 27. Ke3 {[%clk 0:00:32.5]} 27... Ke7 {[%clk
0:01:29]} 28. c4 {[%clk 0:00:29.3]} 28... Bxa1 {[%clk 0:01:26.1]} 29. Rxa1
{[%clk 0:00:28.6]} 29... Bc6 {[%clk 0:01:25.4]} 30. Bxc6 {[%clk 0:00:21.1]}
30... bxc6 {[%clk 0:01:26.3]} 31. Rb1 {[%clk 0:00:21.5]} 31... c5 {[%clk
0:01:18.1]} 32. b5 {[%clk 0:00:21.1]} 32... Rd6 {[%clk 0:01:09.8]} 33. a5 {[%clk
0:00:20.3]} 33... Rbd8 {[%clk 0:01:08.1]} 34. b6 {[%clk 0:00:19.6]} 34... Rd3+
{[%clk 0:01:06.6]} 35. Kf2 {[%clk 0:00:19.7]} 35... Ra3 {[%clk 0:01:06]} 36. b7
{[%clk 0:00:18.9]} 36... Rb8 {[%clk 0:01:05.5]} 37. Rb6 {[%clk 0:00:18.7]} 37...
Kd7 {[%clk 0:01:02]} 38. Nc1 {[%clk 0:00:17.2]} 38... Kc7 {[%clk 0:01:01.7]} 39.
Nb3 {[%clk 0:00:17.3]} 39... Rxa5 {[%clk 0:00:59.5]} 40. Rxe6 {[%clk 0:00:13.2]}
40... Ra2+ {[%clk 0:00:58.5]} 41. Re2 {[%clk 0:00:10.2]} 41... Rxe2+ {[%clk
0:00:57.7]} 42. Kxe2 {[%clk 0:00:11.1]} 42... Kb6 {[%clk 0:00:58.1]} 0-1

[Event "*** Titled Tuesday Blitz"]
[Site "Chess.com"]
[Date "2021.03.30"]
[Round "8"]
[White "Blitzking642"]
[Black "poneis_malditos"]
[Result "1-0"]
[WhiteElo "2443"]
[BlackElo "2292"]
[TimeControl "180+1"]
[EndTime "11:28:23 PDT"]
[Termination "Blitzking642 won by checkmate"]

1. e4 {[%clk 0:03:00.9]} 1... c5 {[%clk 0:03:00.1]} 2. Nf3 {[%clk 0:03:00.5]}
2... e6 {[%clk 0:03:00.6]} 3. d4 {[%clk 0:03:00.3]} 3... cxd4 {[%clk 0:03:01.5]}
4. Nxd4 {[%clk 0:02:59.8]} 4... a6 {[%clk 0:03:02.4]} 5. c4 {[%clk 0:02:59.6]}
5... Nf6 {[%clk 0:03:00.3]} 6. Nc3 {[%clk 0:02:59.2]} 6... Qc7 {[%clk
0:03:00.8]} 7. Be2 {[%clk 0:02:58.6]} 7... Nc6 {[%clk 0:03:00]} 8. Nxc6 {[%clk
0:02:53.1]} 8... dxc6 {[%clk 0:02:58.5]} 9. O-O {[%clk 0:02:47.4]} 9... e5
{[%clk 0:02:58.9]} 10. f4 {[%clk 0:02:36.3]} 10... Bc5+ {[%clk 0:02:58.2]} 11.
Kh1 {[%clk 0:02:35.4]} 11... O-O {[%clk 0:02:55.4]} 12. fxe5 {[%clk 0:02:33.3]}
12... Qxe5 {[%clk 0:02:56.3]} 13. Bf4 {[%clk 0:02:33.6]} 13... Qd4 {[%clk
0:02:49.2]} 14. e5 {[%clk 0:02:14.4]} 14... Ne8 {[%clk 0:02:36.8]} 15. Qc2
{[%clk 0:01:35.4]} 15... Qd8 {[%clk 0:02:30]} 16. Rad1 {[%clk 0:01:28.6]} 16...
Qh4 {[%clk 0:02:22.8]} 17. Bg3 {[%clk 0:01:25.8]} 17... Qe7 {[%clk 0:02:21.4]}
18. Ne4 {[%clk 0:01:21.5]} 18... Be6 {[%clk 0:02:11.6]} 19. Bd3 {[%clk
0:01:12.1]} 19... g6 {[%clk 0:01:57.8]} 20. Nf6+ {[%clk 0:01:05.9]} 20... Kg7
{[%clk 0:01:35.4]} 21. Bh4 {[%clk 0:01:01.4]} 21... Qc7 {[%clk 0:01:32.4]} 22.
Nxe8+ {[%clk 0:00:54.9]} 22... Rfxe8 {[%clk 0:01:33.3]} 23. Bf6+ {[%clk
0:00:55.2]} 23... Kg8 {[%clk 0:01:33.8]} 24. Qd2 {[%clk 0:00:48.9]} 24... Bf8
{[%clk 0:01:29.7]} 25. Rf4 {[%clk 0:00:46.2]} 25... Rad8 {[%clk 0:01:24.7]} 26.
Rh4 {[%clk 0:00:44.1]} 26... h5 {[%clk 0:00:54]} 27. Rxh5 {[%clk 0:00:30.5]}
27... Bg7 {[%clk 0:00:34.2]} 28. Qh6 {[%clk 0:00:15.7]} 28... Bxf6 {[%clk
0:00:16.5]} 29. exf6 {[%clk 0:00:14.3]} 29... gxh5 {[%clk 0:00:15.9]} 30. Qg7#
{[%clk 0:00:14.2]} 1-0